[Event "Titled Tuesday Blitz August 24 2021"]
[White "Grunberg, Mihai-Lucian"]
[Black "Nguyen, Thien Ngan"]
[WhiteFideId "1204149"]
[BlackFideId "12414816"]
[WhiteElo "2364"]
[BlackElo "1917"]
[Result "0-1"]
[Round "10"]
[TimeControl "180+1"]
[Date "2021.08.24"]
[WhiteClock "0:01:38"]
[BlackClock "0:01:10"]

1. d4 {[%clk 0:03:00]}  d5 {[%clk 0:02:59]} 2. c4 {[%clk 0:03:00]}  e6 {[%clk 0:02:58]} 3. Nc3 {[%clk 0:03:01]}  Nf6 {[%clk 0:02:57]} 4. Bg5 {[%clk 0:03:00]}  Be7 {[%clk 0:02:56]} 5. Nf3 {[%clk 0:03:00]}  Nbd7 {[%clk 0:02:55]} 6. Qc2 {[%clk 0:02:59]}  O-O {[%clk 0:02:53]} 7. Rd1 {[%clk 0:02:58]}  c6 {[%clk 0:02:53]} 8. e3 {[%clk 0:02:58]}  Re8 {[%clk 0:02:53]} 9. Bd3 {[%clk 0:02:58]}  Nf8 {[%clk 0:02:53]} 10. O-O {[%clk 0:02:57]}  a6 {[%clk 0:02:50]} 11. Ne5 {[%clk 0:02:56]}  dxc4 {[%clk 0:02:47]} 12. Bxc4 {[%clk 0:02:54]}  Nd5 {[%clk 0:02:47]} 13. Bxe7 {[%clk 0:02:52]}  Qxe7 {[%clk 0:02:46]} 14. Ne4 {[%clk 0:02:44]}  f6 {[%clk 0:02:34]} 15. Nf3 {[%clk 0:02:41]}  Kh8 {[%clk 0:02:34]} 16. a3 {[%clk 0:02:40]}  Ng6 {[%clk 0:02:28]} 17. Ba2 {[%clk 0:02:37]}  e5 {[%clk 0:02:21]} 18. dxe5 {[%clk 0:02:33]}  Nxe5 {[%clk 0:02:20]} 19. Nxe5 {[%clk 0:02:31]}  Qxe5 {[%clk 0:02:20]} 20. Ng3 {[%clk 0:02:30]}  Be6 {[%clk 0:02:16]} 21. Bb1 {[%clk 0:02:28]}  Bg8 {[%clk 0:02:15]} 22. Rd4 {[%clk 0:02:27]}  Rad8 {[%clk 0:01:50]} 23. Rh4 {[%clk 0:02:25]}  h6 {[%clk 0:01:50]} 24. Nh5 {[%clk 0:02:20]}  Qg5 {[%clk 0:01:43]} 25. g3 {[%clk 0:02:15]}  Nxe3 {[%clk 0:01:19]} 26. fxe3 {[%clk 0:02:14]}  Qxe3+ {[%clk 0:01:18]} 27. Qf2 {[%clk 0:02:14]}  Qxf2+ {[%clk 0:01:17]} 28. Rxf2 {[%clk 0:02:08]}  Re1+ {[%clk 0:01:17]} 29. Rf1 {[%clk 0:02:08]}  Rxf1+ {[%clk 0:01:17]} 30. Kxf1 {[%clk 0:02:07]}  Rd1+ {[%clk 0:01:17]} 31. Kf2 {[%clk 0:02:01]}  Rxb1 {[%clk 0:01:17]} 32. Rb4 {[%clk 0:02:02]}  b5 {[%clk 0:01:17]} 33. Nf4 {[%clk 0:01:59]}  c5 {[%clk 0:01:16]} 34. Re4 {[%clk 0:01:59]}  Rxb2+ {[%clk 0:01:17]} 35. Kg1 {[%clk 0:02:00]}  Kh7 {[%clk 0:01:16]} 36. h4 {[%clk 0:01:59]}  c4 {[%clk 0:01:15]} 37. h5 {[%clk 0:01:56]}  c3 {[%clk 0:01:15]} 38. Ng6 {[%clk 0:01:54]}  Bf7 {[%clk 0:01:11]} 39. Nf8+ {[%clk 0:01:41]}  Kg8 {[%clk 0:01:11]} 40. Ng6 {[%clk 0:01:38]}  c2 {[%clk 0:01:10]} 0-1


[Site "https://www.chess.com"]

[Event "Titled Tuesday Blitz August 24 2021"]
[White "Hjartarson, Johann"]
[Black "Loy, Konstantin"]
[WhiteFideId "2300044"]
[BlackFideId "14122499"]
[WhiteElo "2502"]
[BlackElo "2084"]
[Result "0-1"]
[Round "10"]
[TimeControl "180+1"]
[Date "2021.08.24"]
[WhiteClock "0:00:01"]
[BlackClock "0:00:03"]

1. c4 {[%clk 0:03:00]}  c5 {[%clk 0:03:00]} 2. g3 {[%clk 0:02:59]}  g6 {[%clk 0:03:00]} 3. Bg2 {[%clk 0:02:59]}  Bg7 {[%clk 0:03:00]} 4. Nc3 {[%clk 0:02:59]}  Nc6 {[%clk 0:03:01]} 5. a3 {[%clk 0:02:59]}  Nf6 {[%clk 0:03:01]} 6. Rb1 {[%clk 0:02:59]}  O-O {[%clk 0:03:01]} 7. b4 {[%clk 0:02:57]}  d6 {[%clk 0:02:47]} 8. Nf3 {[%clk 0:02:56]}  Rb8 {[%clk 0:02:47]} 9. O-O {[%clk 0:02:53]}  a6 {[%clk 0:02:46]} 10. bxc5 {[%clk 0:02:48]}  dxc5 {[%clk 0:02:46]} 11. d3 {[%clk 0:02:48]}  Nd4 {[%clk 0:02:27]} 12. Bf4 {[%clk 0:02:44]}  Ra8 {[%clk 0:02:22]} 13. Nxd4 {[%clk 0:02:38]}  cxd4 {[%clk 0:02:03]} 14. Na4 {[%clk 0:02:32]}  Nd7 {[%clk 0:02:00]} 15. Bxb7 {[%clk 0:02:22]}  Bxb7 {[%clk 0:01:59]} 16. Rxb7 {[%clk 0:02:21]}  e5 {[%clk 0:01:54]} 17. Bd2 {[%clk 0:02:16]}  Rb8 {[%clk 0:01:51]} 18. Qb3 {[%clk 0:02:10]}  Qf6 {[%clk 0:01:41]} 19. Rb1 {[%clk 0:01:55]}  h5 {[%clk 0:01:25]} 20. Rb4 {[%clk 0:01:07]}  Qc6 {[%clk 0:01:00]} 21. c5 {[%clk 0:01:05]}  Rfc8 {[%clk 0:00:44]} 22. Qc4 {[%clk 0:01:04]}  Rxb4 {[%clk 0:00:35]} 23. Qxb4 {[%clk 0:00:58]}  Nxc5 {[%clk 0:00:29]} 24. Rc1 {[%clk 0:00:32]}  Bf8 {[%clk 0:00:29]} 25. Nxc5 {[%clk 0:00:32]}  Bxc5 {[%clk 0:00:28]} 26. Qc4 {[%clk 0:00:31]}  Qc7 {[%clk 0:00:23]} 27. Bb4 {[%clk 0:00:30]}  Bb6 {[%clk 0:00:22]} 28. Bd6 {[%clk 0:00:27]}  Qxc4 {[%clk 0:00:21]} 29. Rxc4 {[%clk 0:00:26]}  Re8 {[%clk 0:00:12]} 30. Rc6 {[%clk 0:00:24]}  Bd8 {[%clk 0:00:11]} 31. Rxa6 {[%clk 0:00:23]}  Re6 {[%clk 0:00:11]} 32. a4 {[%clk 0:00:21]}  Kh7 {[%clk 0:00:11]} 33. a5 {[%clk 0:00:14]}  Be7 {[%clk 0:00:11]} 34. Ra7 {[%clk 0:00:14]}  Bxd6 {[%clk 0:00:11]} 35. Rxf7+ {[%clk 0:00:14]}  Kh6 {[%clk 0:00:12]} 36. Rb7 {[%clk 0:00:13]}  Bc5 {[%clk 0:00:11]} 37. Rb5 {[%clk 0:00:13]}  Rc6 {[%clk 0:00:11]} 38. a6 {[%clk 0:00:11]}  Kg7 {[%clk 0:00:10]} 39. Kg2 {[%clk 0:00:11]}  Kf6 {[%clk 0:00:10]} 40. Kf3 {[%clk 0:00:11]}  Ke6 {[%clk 0:00:10]} 41. Ke4 {[%clk 0:00:10]}  Kd6 {[%clk 0:00:11]} 42. Ra5 {[%clk 0:00:10]}  Ba7 {[%clk 0:00:10]} 43. Rd5+ {[%clk 0:00:10]}  Kc7 {[%clk 0:00:10]} 44. Rxe5 {[%clk 0:00:09]}  Rxa6 {[%clk 0:00:10]} 45. Re7+ {[%clk 0:00:09]}  Kb8 {[%clk 0:00:11]} 46. Rg7 {[%clk 0:00:09]}  Re6+ {[%clk 0:00:10]} 47. Kf3 {[%clk 0:00:09]}  Bc5 {[%clk 0:00:09]} 48. h3 {[%clk 0:00:08]}  Kc8 {[%clk 0:00:09]} 49. g4 {[%clk 0:00:08]}  hxg4+ {[%clk 0:00:09]} 50. hxg4 {[%clk 0:00:08]}  Rf6+ {[%clk 0:00:09]} 51. Kg2 {[%clk 0:00:08]}  Bd6 {[%clk 0:00:09]} 52. g5 {[%clk 0:00:07]}  Re6 {[%clk 0:00:09]} 53. Kf3 {[%clk 0:00:07]}  Be5 {[%clk 0:00:09]} 54. Rf7 {[%clk 0:00:06]}  Kd8 {[%clk 0:00:09]} 55. e3 {[%clk 0:00:06]}  dxe3 {[%clk 0:00:09]} 56. fxe3 {[%clk 0:00:06]}  Ke8 {[%clk 0:00:09]} 57. Ra7 {[%clk 0:00:05]}  Bd6 {[%clk 0:00:08]} 58. d4 {[%clk 0:00:05]}  Be7 {[%clk 0:00:08]} 59. Kf4 {[%clk 0:00:03]}  Rb6 {[%clk 0:00:08]} 60. e4 {[%clk 0:00:03]}  Rb1 {[%clk 0:00:07]} 61. d5 {[%clk 0:00:02]}  Rf1+ {[%clk 0:00:07]} 62. Ke5 {[%clk 0:00:01]}  Bxg5 {[%clk 0:00:07]} 63. d6 {[%clk 0:00:01]}  Kf8 {[%clk 0:00:04]} 64. Ke6 {[%clk 0:00:01]}  Rf6+ {[%clk 0:00:04]} 65. Kd5 {[%clk 0:00:01]}  Bf4 {[%clk 0:00:03]} 0-1


[Site "https://www.chess.com"]

[Event "Titled Tuesday Blitz August 24 2021"]
[White "Ibadov, Dashgyn"]
[Black "Ivanov, Oleg"]
[WhiteFideId "24107514"]
[BlackFideId "4103114"]
[WhiteElo "2102"]
[BlackElo "2702"]
[Result "0-1"]
[Round "10"]
[TimeControl "180+1"]
[Date "2021.08.24"]
[WhiteClock "0:02:23"]
[BlackClock "0:02:00"]

1. e4 {[%clk 0:03:00]}  d5 {[%clk 0:02:59]} 2. exd5 {[%clk 0:03:00]}  Qxd5 {[%clk 0:03:00]} 3. Nc3 {[%clk 0:03:01]}  Qd6 {[%clk 0:03:01]} 4. d4 {[%clk 0:03:00]}  Nf6 {[%clk 0:03:01]} 5. Nf3 {[%clk 0:03:01]}  c6 {[%clk 0:03:01]} 6. Ne5 {[%clk 0:02:56]}  Nbd7 {[%clk 0:03:00]} 7. Bf4 {[%clk 0:02:56]}  Nd5 {[%clk 0:03:01]} 8. Bg3 {[%clk 0:02:45]}  Nxe5 {[%clk 0:02:52]} 9. Bxe5 {[%clk 0:02:39]}  Qb4 {[%clk 0:02:50]} 10. Qd2 {[%clk 0:02:34]}  Qxb2 {[%clk 0:02:37]} 11. Nxd5 {[%clk 0:02:27]}  Qxa1+ {[%clk 0:02:36]} 12. Ke2 {[%clk 0:02:28]}  cxd5 {[%clk 0:02:33]} 13. Kf3 {[%clk 0:02:28]}  Qb2 {[%clk 0:02:17]} 14. a4 {[%clk 0:02:23]}  Bd7 {[%clk 0:02:00]} 0-1


[Site "https://www.chess.com"]

[Event "Titled Tuesday Blitz August 24 2021"]
[White "Ivanisevic, Ivan"]
[Black "Isajevsky, Anton"]
[WhiteFideId "912417"]
[BlackFideId "4142500"]
[WhiteElo "2499"]
[BlackElo "2510"]
[Result "1-0"]
[Round "10"]
[TimeControl "180+1"]
[Date "2021.08.24"]
[WhiteClock "0:00:30"]
[BlackClock "0:00:02"]

1. d4 {[%clk 0:03:00]}  d5 {[%clk 0:02:59]} 2. c4 {[%clk 0:03:01]}  e6 {[%clk 0:03:00]} 3. Nc3 {[%clk 0:02:57]}  a6 {[%clk 0:02:58]} 4. cxd5 {[%clk 0:02:54]}  exd5 {[%clk 0:02:58]} 5. Nf3 {[%clk 0:02:55]}  c6 {[%clk 0:02:57]} 6. e4 {[%clk 0:02:51]}  dxe4 {[%clk 0:02:55]} 7. Ng5 {[%clk 0:02:52]}  Be7 {[%clk 0:02:43]} 8. Bc4 {[%clk 0:02:31]}  Bxg5 {[%clk 0:02:12]} 9. Qh5 {[%clk 0:02:30]}  g6 {[%clk 0:02:12]} 10. Qxg5 {[%clk 0:02:29]}  Qxg5 {[%clk 0:02:13]} 11. Bxg5 {[%clk 0:02:28]}  b5 {[%clk 0:01:51]} 12. Bb3 {[%clk 0:02:27]}  Bf5 {[%clk 0:00:49]} 13. O-O-O {[%clk 0:02:24]}  Nd7 {[%clk 0:00:46]} 14. Rhe1 {[%clk 0:02:09]}  Ngf6 {[%clk 0:00:45]} 15. f3 {[%clk 0:02:07]}  O-O {[%clk 0:00:42]} 16. fxe4 {[%clk 0:02:04]}  Be6 {[%clk 0:00:41]} 17. Bc2 {[%clk 0:01:38]}  Kg7 {[%clk 0:00:31]} 18. h3 {[%clk 0:01:38]}  Nb6 {[%clk 0:00:24]} 19. Rf1 {[%clk 0:01:32]}  Ng8 {[%clk 0:00:13]} 20. d5 {[%clk 0:01:31]}  cxd5 {[%clk 0:00:12]} 21. exd5 {[%clk 0:01:30]}  Bd7 {[%clk 0:00:12]} 22. Be3 {[%clk 0:01:21]}  Nc4 {[%clk 0:00:12]} 23. Bd4+ {[%clk 0:01:21]}  f6 {[%clk 0:00:12]} 24. b3 {[%clk 0:01:11]}  Nd6 {[%clk 0:00:05]} 25. g4 {[%clk 0:00:40]}  Rac8 {[%clk 0:00:05]} 26. Kb2 {[%clk 0:00:39]}  h5 {[%clk 0:00:04]} 27. gxh5 {[%clk 0:00:33]}  g5 {[%clk 0:00:03]} 28. h4 {[%clk 0:00:31]}  g4 {[%clk 0:00:02]} 29. Ne2 {[%clk 0:00:30]} 1-0


[Site "https://www.chess.com"]

[Event "Titled Tuesday Blitz August 24 2021"]
[White "Khusnutdinov, Rustam"]
[Black "Fedoseev, Vladimir"]
[WhiteFideId "13701703"]
[BlackFideId "24130737"]
[WhiteElo "2571"]
[BlackElo "2756"]
[Result "1-0"]
[Round "10"]
[TimeControl "180+1"]
[Date "2021.08.24"]
[WhiteClock "0:00:41"]
[BlackClock "0:00:28"]

1. d4 {[%clk 0:03:00]}  g6 {[%clk 0:02:58]} 2. c4 {[%clk 0:02:54]}  Bg7 {[%clk 0:02:58]} 3. Nc3 {[%clk 0:02:54]}  Nf6 {[%clk 0:02:51]} 4. e4 {[%clk 0:02:48]}  d6 {[%clk 0:02:51]} 5. Nge2 {[%clk 0:02:48]}  O-O {[%clk 0:02:50]} 6. Ng3 {[%clk 0:02:48]}  h5 {[%clk 0:02:47]} 7. Bg5 {[%clk 0:02:45]}  Nh7 {[%clk 0:02:45]} 8. Be3 {[%clk 0:02:45]}  Nd7 {[%clk 0:02:38]} 9. Be2 {[%clk 0:02:36]}  c5 {[%clk 0:02:37]} 10. d5 {[%clk 0:02:35]}  h4 {[%clk 0:02:18]} 11. Nf1 {[%clk 0:02:34]}  f5 {[%clk 0:01:57]} 12. exf5 {[%clk 0:02:23]}  gxf5 {[%clk 0:01:58]} 13. Qd2 {[%clk 0:02:15]}  Ne5 {[%clk 0:01:56]} 14. h3 {[%clk 0:02:09]}  Ng6 {[%clk 0:01:43]} 15. Bh6 {[%clk 0:02:08]}  f4 {[%clk 0:01:41]} 16. Bxg7 {[%clk 0:02:06]}  Kxg7 {[%clk 0:01:42]} 17. Nh2 {[%clk 0:02:06]}  Ng5 {[%clk 0:01:38]} 18. Nf3 {[%clk 0:02:02]}  Nxf3+ {[%clk 0:01:37]} 19. gxf3 {[%clk 0:02:02]}  Ne5 {[%clk 0:01:36]} 20. Rg1+ {[%clk 0:01:53]}  Kh6 {[%clk 0:01:32]} 21. O-O-O {[%clk 0:01:52]}  Bxh3 {[%clk 0:01:12]} 22. Ne4 {[%clk 0:01:44]}  Qd7 {[%clk 0:01:12]} 23. Ng5 {[%clk 0:01:41]}  Kh5 {[%clk 0:01:10]} 24. Bf1 {[%clk 0:00:57]}  Bxf1 {[%clk 0:00:58]} 25. Ne6 {[%clk 0:00:53]}  Bxc4 {[%clk 0:00:53]} 26. Nxf4+ {[%clk 0:00:43]}  Kh6 {[%clk 0:00:28]} 27. Ne6+ {[%clk 0:00:41]} 1-0


[Site "https://www.chess.com"]

[Event "Titled Tuesday Blitz August 24 2021"]
[White "Koziol, Kamil"]
[Black "Farahat, Ali"]
[WhiteFideId "1161555"]
[BlackFideId "10600507"]
[WhiteElo "2025"]
[BlackElo "2321"]
[Result "0-1"]
[Round "10"]
[TimeControl "180+1"]
[Date "2021.08.24"]
[WhiteClock "0:00:32"]
[BlackClock "0:01:28"]

1. e4 {[%clk 0:03:00]}  e5 {[%clk 0:02:59]} 2. Nf3 {[%clk 0:02:49]}  Nc6 {[%clk 0:02:59]} 3. Nc3 {[%clk 0:02:47]}  Nf6 {[%clk 0:02:59]} 4. a3 {[%clk 0:02:46]}  d6 {[%clk 0:02:45]} 5. d4 {[%clk 0:02:43]}  Bg4 {[%clk 0:02:44]} 6. d5 {[%clk 0:02:14]}  Ne7 {[%clk 0:02:33]} 7. h3 {[%clk 0:02:10]}  Bd7 {[%clk 0:02:28]} 8. Bg5 {[%clk 0:02:08]}  Nfg8 {[%clk 0:02:23]} 9. Bc4 {[%clk 0:01:58]}  g6 {[%clk 0:02:22]} 10. O-O {[%clk 0:01:57]}  Bg7 {[%clk 0:02:22]} 11. Nh2 {[%clk 0:01:54]}  Nf6 {[%clk 0:02:17]} 12. f4 {[%clk 0:01:44]}  exf4 {[%clk 0:01:59]} 13. e5 {[%clk 0:01:26]}  dxe5 {[%clk 0:01:52]} 14. d6 {[%clk 0:01:26]}  cxd6 {[%clk 0:01:49]} 15. Qxd6 {[%clk 0:01:24]}  Qb6+ {[%clk 0:01:49]} 16. Qxb6 {[%clk 0:01:24]}  axb6 {[%clk 0:01:50]} 17. Rae1 {[%clk 0:01:18]}  h6 {[%clk 0:01:44]} 18. Bh4 {[%clk 0:01:07]}  Nf5 {[%clk 0:01:37]} 19. Rxe5+ {[%clk 0:01:05]}  Be6 {[%clk 0:01:35]} 20. Bxe6 {[%clk 0:01:02]}  fxe6 {[%clk 0:01:32]} 21. Bxf6 {[%clk 0:00:48]}  Bxf6 {[%clk 0:01:33]} 22. Rxe6+ {[%clk 0:00:49]}  Kf7 {[%clk 0:01:32]} 23. Rfe1 {[%clk 0:00:40]}  Bd4+ {[%clk 0:01:28]} 24. Kf1 {[%clk 0:00:32]}  Ng3# {[%clk 0:01:28]} 0-1


[Site "https://www.chess.com"]

[Event "Titled Tuesday Blitz August 24 2021"]
[White "Krysa, Leandro"]
[Black "Palchuk, Andrii"]
[WhiteFideId "116807"]
[BlackFideId "14176688"]
[WhiteElo "2490"]
[BlackElo "2320"]
[Result "0-1"]
[Round "10"]
[TimeControl "180+1"]
[Date "2021.08.24"]
[WhiteClock "0:00:40"]
[BlackClock "0:01:10"]

1. e4 {[%clk 0:03:00]}  d5 {[%clk 0:02:59]} 2. exd5 {[%clk 0:03:00]}  Nf6 {[%clk 0:02:59]} 3. Nf3 {[%clk 0:03:01]}  Bg4 {[%clk 0:02:59]} 4. Be2 {[%clk 0:02:57]}  Qxd5 {[%clk 0:02:59]} 5. d4 {[%clk 0:02:55]}  Nc6 {[%clk 0:02:59]} 6. O-O {[%clk 0:02:54]}  O-O-O {[%clk 0:02:58]} 7. c4 {[%clk 0:02:54]}  Qh5 {[%clk 0:02:58]} 8. Be3 {[%clk 0:02:53]}  e5 {[%clk 0:02:45]} 9. d5 {[%clk 0:02:50]}  e4 {[%clk 0:02:40]} 10. Nd4 {[%clk 0:02:25]}  Nxd4 {[%clk 0:02:37]} 11. Qxd4 {[%clk 0:02:25]}  Bxe2 {[%clk 0:02:37]} 12. Qxa7 {[%clk 0:02:25]}  Bxf1 {[%clk 0:02:28]} 13. Qa8+ {[%clk 0:02:25]}  Kd7 {[%clk 0:02:27]} 14. Qxb7 {[%clk 0:02:25]}  Bd6 {[%clk 0:02:27]} 15. h3 {[%clk 0:02:17]}  Qd1 {[%clk 0:02:13]} 16. Nd2 {[%clk 0:02:01]}  Qxa1 {[%clk 0:02:10]} 17. Nxf1 {[%clk 0:02:02]}  Qxa2 {[%clk 0:01:57]} 18. Qc6+ {[%clk 0:01:53]}  Ke7 {[%clk 0:01:56]} 19. c5 {[%clk 0:01:48]}  Be5 {[%clk 0:01:47]} 20. d6+ {[%clk 0:01:10]}  cxd6 {[%clk 0:01:46]} 21. Bg5 {[%clk 0:01:11]}  dxc5 {[%clk 0:01:34]} 22. Qxc5+ {[%clk 0:00:51]}  Bd6 {[%clk 0:01:33]} 23. Qf5 {[%clk 0:00:51]}  Qe6 {[%clk 0:01:30]} 24. Qa5 {[%clk 0:00:50]}  Ra8 {[%clk 0:01:29]} 25. Qe1 {[%clk 0:00:43]}  h6 {[%clk 0:01:27]} 26. Bxf6+ {[%clk 0:00:42]}  gxf6 {[%clk 0:01:26]} 27. Ne3 {[%clk 0:00:43]}  Rhb8 {[%clk 0:01:17]} 28. Qd1 {[%clk 0:00:40]}  Rxb2 {[%clk 0:01:11]} 29. g3 {[%clk 0:00:40]}  Raa2 {[%clk 0:01:10]} 0-1


[Site "https://www.chess.com"]

[Event "Titled Tuesday Blitz August 24 2021"]
[White "Lauridsen, Jesper Morch"]
[Black "Eswaran, Ashritha"]
[WhiteFideId "1401890"]
[BlackFideId "2080788"]
[WhiteElo "2277"]
[BlackElo "2453"]
[Result "0-1"]
[Round "10"]
[TimeControl "180+1"]
[Date "2021.08.24"]
[WhiteClock "0:00:01"]
[BlackClock "0:01:15"]

1. e4 {[%clk 0:03:00]}  c5 {[%clk 0:02:59]} 2. Nf3 {[%clk 0:03:00]}  d6 {[%clk 0:02:56]} 3. d4 {[%clk 0:03:00]}  cxd4 {[%clk 0:02:54]} 4. Nxd4 {[%clk 0:03:00]}  Nf6 {[%clk 0:02:50]} 5. Nc3 {[%clk 0:03:00]}  g6 {[%clk 0:02:50]} 6. Be3 {[%clk 0:02:59]}  Bg7 {[%clk 0:02:50]} 7. f3 {[%clk 0:02:59]}  Nc6 {[%clk 0:02:50]} 8. Qd2 {[%clk 0:02:59]}  O-O {[%clk 0:02:51]} 9. Bc4 {[%clk 0:02:59]}  Bd7 {[%clk 0:02:51]} 10. O-O-O {[%clk 0:02:57]}  Ne5 {[%clk 0:02:51]} 11. Bb3 {[%clk 0:02:56]}  Rc8 {[%clk 0:02:52]} 12. h4 {[%clk 0:02:55]}  h5 {[%clk 0:02:52]} 13. Bh6 {[%clk 0:02:55]}  Nc4 {[%clk 0:02:52]} 14. Bxc4 {[%clk 0:02:51]}  Rxc4 {[%clk 0:02:52]} 15. Bxg7 {[%clk 0:02:50]}  Kxg7 {[%clk 0:02:53]} 16. Nb3 {[%clk 0:02:41]}  a5 {[%clk 0:02:50]} 17. Qd3 {[%clk 0:02:36]}  b5 {[%clk 0:02:48]} 18. Nd2 {[%clk 0:02:30]}  Rc5 {[%clk 0:02:46]} 19. Nb3 {[%clk 0:02:19]}  Rc4 {[%clk 0:02:44]} 20. Nd2 {[%clk 0:02:18]}  Rc8 {[%clk 0:02:26]} 21. Nxb5 {[%clk 0:02:14]}  Qb6 {[%clk 0:02:24]} 22. a4 {[%clk 0:02:11]}  Rc5 {[%clk 0:02:16]} 23. Nc4 {[%clk 0:01:56]}  Qa6 {[%clk 0:02:15]} 24. Nca3 {[%clk 0:01:49]}  Rfc8 {[%clk 0:02:13]} 25. Kb1 {[%clk 0:01:34]}  Be6 {[%clk 0:02:11]} 26. f4 {[%clk 0:01:22]}  Bc4 {[%clk 0:02:05]} 27. Qd4 {[%clk 0:01:22]}  e5 {[%clk 0:01:50]} 28. fxe5 {[%clk 0:01:18]}  dxe5 {[%clk 0:01:49]} 29. Qe3 {[%clk 0:00:59]}  Ng4 {[%clk 0:01:47]} 30. Qf3 {[%clk 0:00:48]}  Bxb5 {[%clk 0:01:43]} 31. axb5 {[%clk 0:00:45]}  Qe6 {[%clk 0:01:42]} 32. c4 {[%clk 0:00:40]}  a4 {[%clk 0:01:34]} 33. Rd2 {[%clk 0:00:37]}  Rxc4 {[%clk 0:01:29]} 34. Nxc4 {[%clk 0:00:32]}  Rxc4 {[%clk 0:01:30]} 35. Rc1 {[%clk 0:00:27]}  Rb4 {[%clk 0:01:29]} 36. Rd5 {[%clk 0:00:13]}  Nf6 {[%clk 0:01:22]} 37. Rc6 {[%clk 0:00:11]}  Qe7 {[%clk 0:01:23]} 38. Rxf6 {[%clk 0:00:03]}  Qxf6 {[%clk 0:01:22]} 39. Qxf6+ {[%clk 0:00:03]}  Kxf6 {[%clk 0:01:23]} 40. Ka2 {[%clk 0:00:03]}  Rb3 {[%clk 0:01:20]} 41. b6 {[%clk 0:00:01]}  Rxb6 {[%clk 0:01:17]} 42. Ka3 {[%clk 0:00:01]}  Rb3+ {[%clk 0:01:15]} 43. Kxa4 {[%clk 0:00:01]}  Rxb2 {[%clk 0:01:15]} 0-1


[Site "https://www.chess.com"]

[Event "Titled Tuesday Blitz August 24 2021"]
[White "Lazavik, Denis"]
[Black "Korchmar, Vasiliy"]
[WhiteFideId "13515110"]
[BlackFideId "24131750"]
[WhiteElo "2436"]
[BlackElo "2370"]
[Result "1-0"]
[Round "10"]
[TimeControl "180+1"]
[Date "2021.08.24"]
[WhiteClock "0:00:11"]
[BlackClock "0:00:03"]

1. d4 {[%clk 0:03:00]}  Nf6 {[%clk 0:02:59]} 2. c4 {[%clk 0:03:01]}  c6 {[%clk 0:03:00]} 3. Nf3 {[%clk 0:03:00]}  d5 {[%clk 0:03:00]} 4. e3 {[%clk 0:02:59]}  Bg4 {[%clk 0:03:00]} 5. Qb3 {[%clk 0:02:58]}  Qb6 {[%clk 0:02:58]} 6. Ne5 {[%clk 0:02:57]}  Bf5 {[%clk 0:02:57]} 7. cxd5 {[%clk 0:02:56]}  Nxd5 {[%clk 0:02:32]} 8. Bd3 {[%clk 0:02:53]}  Qxb3 {[%clk 0:02:23]} 9. axb3 {[%clk 0:02:52]}  Bxd3 {[%clk 0:02:22]} 10. Nxd3 {[%clk 0:02:53]}  Na6 {[%clk 0:02:12]} 11. Bd2 {[%clk 0:02:51]}  e6 {[%clk 0:02:12]} 12. Ke2 {[%clk 0:02:50]}  Be7 {[%clk 0:02:09]} 13. Na3 {[%clk 0:02:44]}  O-O {[%clk 0:02:06]} 14. Nc4 {[%clk 0:02:43]}  Nab4 {[%clk 0:02:01]} 15. Rhc1 {[%clk 0:01:57]}  Nxd3 {[%clk 0:01:52]} 16. Kxd3 {[%clk 0:01:56]}  Bb4 {[%clk 0:01:51]} 17. Bc3 {[%clk 0:01:49]}  Rfd8 {[%clk 0:01:48]} 18. Ke2 {[%clk 0:01:45]}  Bf8 {[%clk 0:01:32]} 19. Na5 {[%clk 0:01:42]}  Rd7 {[%clk 0:01:31]} 20. Bd2 {[%clk 0:01:19]}  Rad8 {[%clk 0:01:17]} 21. Nc4 {[%clk 0:01:19]}  a6 {[%clk 0:01:15]} 22. Ne5 {[%clk 0:01:18]}  Re7 {[%clk 0:01:11]} 23. Ba5 {[%clk 0:01:03]}  Rc8 {[%clk 0:01:06]} 24. e4 {[%clk 0:00:59]}  Nc7 {[%clk 0:01:06]} 25. Bb4 {[%clk 0:00:28]}  Ree8 {[%clk 0:01:05]} 26. Bxf8 {[%clk 0:00:29]}  Kxf8 {[%clk 0:00:59]} 27. Nd7+ {[%clk 0:00:28]}  Ke7 {[%clk 0:00:55]} 28. Nc5 {[%clk 0:00:29]}  Rcd8 {[%clk 0:00:55]} 29. Nxb7 {[%clk 0:00:23]}  Rb8 {[%clk 0:00:54]} 30. Na5 {[%clk 0:00:21]}  Rb6 {[%clk 0:00:46]} 31. Rxc6 {[%clk 0:00:19]}  Rxc6 {[%clk 0:00:46]} 32. Nxc6+ {[%clk 0:00:20]}  Kd6 {[%clk 0:00:45]} 33. Ne5 {[%clk 0:00:20]}  Rb8 {[%clk 0:00:42]} 34. Rc1 {[%clk 0:00:21]}  Nb5 {[%clk 0:00:36]} 35. Rc6+ {[%clk 0:00:20]}  Ke7 {[%clk 0:00:36]} 36. Ke3 {[%clk 0:00:20]}  f6 {[%clk 0:00:31]} 37. Nc4 {[%clk 0:00:18]}  Rd8 {[%clk 0:00:31]} 38. d5 {[%clk 0:00:09]}  exd5 {[%clk 0:00:29]} 39. exd5 {[%clk 0:00:10]}  Rxd5 {[%clk 0:00:30]} 40. Rxa6 {[%clk 0:00:10]}  Rd7 {[%clk 0:00:22]} 41. Na5 {[%clk 0:00:06]}  Kf7 {[%clk 0:00:18]} 42. Nc6 {[%clk 0:00:05]}  Kg6 {[%clk 0:00:17]} 43. Rb6 {[%clk 0:00:04]}  Nc7 {[%clk 0:00:17]} 44. Nb4 {[%clk 0:00:03]}  Re7+ {[%clk 0:00:14]} 45. Kd3 {[%clk 0:00:03]}  Ne6 {[%clk 0:00:14]} 46. g3 {[%clk 0:00:01]}  Nc5+ {[%clk 0:00:14]} 47. Kc4 {[%clk 0:00:02]}  Ne4 {[%clk 0:00:13]} 48. Nd5 {[%clk 0:00:03]}  Re5 {[%clk 0:00:11]} 49. Nf4+ {[%clk 0:00:03]}  Kh6 {[%clk 0:00:10]} 50. Nd3 {[%clk 0:00:04]}  Re7 {[%clk 0:00:09]} 51. Kd4 {[%clk 0:00:04]}  Nd2 {[%clk 0:00:08]} 52. b4 {[%clk 0:00:05]}  Rd7+ {[%clk 0:00:08]} 53. Kc3 {[%clk 0:00:05]}  Ne4+ {[%clk 0:00:03]} 54. Kc2 {[%clk 0:00:06]}  Nd6 {[%clk 0:00:03]} 55. b3 {[%clk 0:00:06]}  Nf5 {[%clk 0:00:04]} 56. Nc5 {[%clk 0:00:06]}  Nd4+ {[%clk 0:00:04]} 57. Kb2 {[%clk 0:00:06]}  Re7 {[%clk 0:00:04]} 58. Rd6 {[%clk 0:00:06]}  Re2+ {[%clk 0:00:04]} 59. Kc3 {[%clk 0:00:07]}  Nb5+ {[%clk 0:00:04]} 60. Kd3 {[%clk 0:00:08]}  Rxf2 {[%clk 0:00:04]} 61. Rb6 {[%clk 0:00:08]}  Na3 {[%clk 0:00:02]} 62. b5 {[%clk 0:00:07]}  Rxh2 {[%clk 0:00:02]} 63. Rb8 {[%clk 0:00:07]}  Rg2 {[%clk 0:00:02]} 64. b6 {[%clk 0:00:07]}  Rxg3+ {[%clk 0:00:02]} 65. Ke2 {[%clk 0:00:07]}  Rg2+ {[%clk 0:00:02]} 66. Kf3 {[%clk 0:00:07]}  Rg5 {[%clk 0:00:03]} 67. b7 {[%clk 0:00:06]}  Rxc5 {[%clk 0:00:03]} 68. Ra8 {[%clk 0:00:07]}  Rb5 {[%clk 0:00:02]} 69. b8=Q {[%clk 0:00:07]}  Rxb8 {[%clk 0:00:03]} 70. Rxb8 {[%clk 0:00:08]}  Kg6 {[%clk 0:00:03]} 71. b4 {[%clk 0:00:09]}  Kf5 {[%clk 0:00:03]} 72. b5 {[%clk 0:00:09]}  Ke6 {[%clk 0:00:03]} 73. b6 {[%clk 0:00:10]}  Kd7 {[%clk 0:00:03]} 74. b7 {[%clk 0:00:10]}  Kc7 {[%clk 0:00:03]} 75. Ra8 {[%clk 0:00:11]} 1-0


[Site "https://www.chess.com"]